bitfinex-derivatives/quotes_SOLF0:USTF0_20240925
["timestamp","ask_amount","ask_price","bid_price","bid_amount"]
[1727276979490,3.34691026,152.38,152.31,14.19]
[1727276979687,3.2808,152.41,152.38,3.2813]
[1727276980192,3.26909041,152.41,152.34,1.3765]
[1727276980388,3.281,152.4,152.37,3.2815]
[1727276980788,3.2812,152.39,152.38,5.25]
[1727276981297,17.4712,152.39,152.38,5.25]
[1727276981891,3.2812,152.39,152.38,5.25]
[1727276984493,17.4712,152.39,152.38,0.4628]
[1727276984695,14.19,152.39,152.3,3.9856]
[1727276984994,14.19,152.4,152.3,18.1756]
[1727276985194,14.19,152.42,152.32,14.19]
[1727276985587,3.281,152.4,152.37,3.2815]
[1727276985795,3.21470095,152.39,152.37,3.2815]
[1727276986195,6.49590095,152.39,152.37,3.2815]
[1727276986397,3.2812,152.39,152.38,2.87]
[1727276986898,3.31046756,152.39,152.38,2.87]
[1727276987094,14.19,152.42,152.38,6.1514]
[1727276987292,3.2811,152.4,152.38,2.87]
[1727276987598,3.33246293,152.39,152.38,2.87]
[1727276988096,14.19,152.42,152.38,6.1514]
[1727276988496,6.53184723,152.41,152.38,6.1514]
[1727276989403,3.281,152.4,152.38,6.1514]
[1727276990400,3.2808,152.41,152.38,11.4014]
[1727276990697,3.26647682,152.4,152.38,11.4014]
[1727276990899,3.2808,152.41,152.38,11.4014]
[1727276991098,17.46205774,152.42,152.38,11.4014]
[1727276991402,17.46205774,152.42,152.38,8.12]
[1727276991897,3.2809,152.41,152.38,11.4013]
[1727276992402,9.08,152.41,152.38,11.4013]
[1727276992602,9.08,152.4,152.38,8.12]
[1727276993099,3.2812,152.39,152.38,8.12]
[1727276993402,12.3612,152.39,152.38,8.12]
[1727276994093,12.3612,152.39,152.38,11.55]
[1727276994297,3.2821,152.35,152.3,3.9856]
[1727276994600,3.2821,152.35,152.3,13.0656]
[1727276994903,3.2821,152.35,152.32,3.2825]
[1727276995497,9.08,152.36,152.32,3.2825]
[1727276996199,9.08,152.36,152.32,8.5325]
[1727276996399,14.19,152.38,152.32,8.5325]
[1727276996594,14.19,152.38,152.32,5.25]
[1727276997103,17.41344924,152.38,152.32,5.25]
[1727276998200,3.2822,152.35,152.32,8.5326]
[1727276999901,17.41344924,152.38,152.32,5.25]
[1727277000905,3.22344924,152.38,152.32,5.25]
[1727277001101,14.19,152.4,152.34,3.2822]
[1727277001301,17.5351598,152.4,152.32,5.25]
[1727277002097,3.2817,152.37,152.32,5.25]
[1727277002301,3.3451598,152.4,152.33,14.19]
[1727277002502,14.19,152.42,152.34,5.25]
[1727277002707,14.19,152.42,152.36,3.2818]
[1727277002708,3.2813,152.39,152.36,3.2818]
[1727277002903,6.62547467,152.39,152.36,3.2818]
[1727277003309,3.2815,152.38,152.34,5.25]
[1727277004011,3.2816,152.37,152.34,5.25]
[1727277004406,14.19,152.38,152.34,5.25]
[1727277004606,3.2819,152.36,152.34,5.25]
[1727277005499,3.22466752,152.36,152.34,5.25]
[1727277005704,14.19,152.38,152.34,5.25]
[1727277006205,3.282,152.35,152.34,5.25]
[1727277007598,6.50533858,152.35,152.34,5.25]
[1727277008507,3.2825,152.33,152.32,5.25]
[1727277008911,17.4725,152.33,152.32,5.25]
[1727277010705,3.2825,152.33,152.32,5.25]
[1727277011304,88.6356,152.52,152.32,5.25]
[1727277011512,14.19,152.43,152.33,15.5012]
[1727277011908,17.4703,152.43,152.38,3.2813]
[1727277012313,14.19,152.43,152.33,15.5012]
[1727277012713,14.19,152.43,152.39,3.2811]
[1727277012915,14.19,152.42,152.33,1.3112]
[1727277013317,3.281,152.4,152.36,3.2817]
[1727277013615,71.89285264,152.47,152.33,1.3112]
[1727277013812,14.19,152.39,152.33,1.3112]
[1727277014014,3.27960871,152.38,152.33,1.3112]
[1727277014212,14.19,152.37,152.32,6.6118]
[1727277014516,3.2823,152.34,152.32,5.25]
[1727277014814,3.22150735,152.34,152.32,5.25]
[1727277015313,14.19,152.37,152.32,5.25]
[1727277015515,3.2819,152.36,152.33,3.2823]
[1727277015711,3.25466123,152.37,152.32,5.25]
[1727277015913,14.19,152.39,152.32,5.25]
[1727277016113,17.52486569,152.39,152.32,5.25]
[1727277016314,3.2815,152.38,152.34,3.2821]
[1727277016815,3.282,152.36,152.33,3.2824]
[1727277017116,14.19,152.38,152.32,5.25]
[1727277017513,17.52486569,152.39,152.32,5.25]
[1727277017721,1.2638,152.45,152.32,6.6406]
[1727277018019,14.19,152.39,152.32,6.6406]
[1727277018207,17.44835686,152.39,152.34,3.2822]
[1727277018607,17.44835686,152.39,152.32,6.6406]
[1727277018814,14.19,152.37,152.32,6.6406]
[1727277019111,3.2821,152.35,152.32,9.9232]
[1727277019309,14.19,152.34,152.32,5.25]
[1727277019817,3.23175937,152.33,152.32,5.25]
[1727277020516,1.2632,152.39,152.32,5.25]
[1727277020517,14.19,152.37,152.32,8.5327]
[1727277020713,17.5284777,152.37,152.32,5.25]
[1727277020917,20.8101777,152.37,152.33,3.2822]
[1727277021120,17.5284777,152.37,152.31,5.25]
[1727277021318,3.3384777,152.37,152.31,5.25]
[1727277021623,14.19,152.39,152.32,1.3289]
[1727277022015,17.4224161,152.39,152.32,1.3289]
[1727277022222,3.2817,152.37,152.34,3.2822]
[1727277022720,14.19,152.37,152.32,4.6115]
[1727277023022,14.19,152.37,152.35,5.25]
[1727277023928,3.2818,152.36,152.35,10.5]
[1727277024120,14.19,152.37,152.35,10.5]
[1727277024315,3.2818,152.36,152.35,10.5]
[1727277025021,14.19,152.37,152.35,10.5]
[1727277025915,17.4718,152.36,152.35,10.5]
[1727277026732,3.2818,152.36,152.35,10.5]
[1727277027629,14.19,152.37,152.35,10.5]
[1727277029039,3.2818,152.36,152.35,10.5]
[1727277029238,14.19,152.37,152.35,10.5]
[1727277029424,3.2814,152.38,152.35,10.5]
[1727277029728,3.2324161,152.39,152.37,3.2815]
[1727277029929,14.19,152.41,152.37,3.2815]
[1727277030133,3.281,152.4,152.37,3.2815]
[1727277030526,14.19,152.41,152.37,3.2815]
[1727277030730,3.2812,152.39,152.36,3.2817]
[1727277031035,3.26940611,152.38,152.35,10.5]
[1727277031234,3.2815,152.38,152.35,13.7819]
[1727277031539,6.57126806,152.38,152.35,13.7819]
[1727277031741,3.2815,152.38,152.35,13.7819]
[1727277032041,3.2817,152.37,152.35,10.5]
[1727277034637,3.2818,152.36,152.35,10.5]
[1727277035635,3.2817,152.37,152.35,10.5]
[1727277036039,17.52180116,152.38,152.35,10.5]
[1727277036233,3.2818,152.36,152.35,10.5]
[1727277036843,17.4718,152.36,152.35,10.5]
[1727277038032,3.2829,152.32,152.29,3.2833]
[1727277038241,14.19,152.34,152.27,90.2176844]
[1727277038544,17.40459058,152.34,152.27,90.2176844]
[1727277038745,3.2825,152.33,152.31,3.2829]
[1727277039041,17.40459058,152.34,152.27,2.6474]
[1727277039236,3.2831,152.3,152.27,5.9311]
[1727277039539,14.19,152.32,152.23,1.3557]
[1727277039735,3.2836,152.28,152.25,3.2842]
[1727277039930,6.61923218,152.28,152.23,11.1057]
[1727277040131,14.19,152.3,152.23,11.1057]
[1727277040337,3.2837,152.28,152.25,3.2842]
[1727277040543,17.52924466,152.3,152.23,11.1057]
[1727277041139,3.33924466,152.3,152.23,11.1057]
[1727277041444,14.19,152.34,152.24,14.19]
[1727277041639,3.2826,152.33,152.26,14.19]
[1727277041836,14.19,152.34,152.26,14.19]
[1727277042339,14.19,152.34,152.3,3.2831]
[1727277042739,14.19,152.34,152.26,14.19]
[1727277043135,3.2827,152.32,152.29,3.2832]
[1727277043336,14.19,152.34,152.26,14.19]
[1727277043749,3.2826,152.33,152.26,14.19]
[1727277045041,3.2826,152.33,152.3,3.2831]
[1727277045543,14.19,152.34,152.29,3.2832]
[1727277046050,14.19,152.34,152.28,3.2834]
[1727277046842,3.2828,152.32,152.29,3.2832]
[1727277047340,1.2822,152.38,152.28,3.2835]
[1727277047550,14.19,152.32,152.28,3.2835]
[1727277047846,3.32435627,152.31,152.28,3.2835]
[1727277048144,1.2822,152.38,152.23,25.2957]
[1727277048346,14.19,152.3,152.23,11.1057]
[1727277048640,6.60600395,152.29,152.26,3.2839]
[1727277048841,3.32260395,152.29,152.23,11.1057]
[1727277049148,3.2843,152.25,152.23,9.75]
[1727277049346,3.30453918,152.24,152.23,9.75]
[1727277049548,3.2843,152.25,152.23,9.75]
[1727277049743,3.22669644,152.24,152.23,9.75]
[1727277049947,3.2843,152.25,152.23,9.75]
[1727277050342,6.57143131,152.25,152.23,9.75]
[1727277050539,3.28713131,152.25,152.23,9.75]
[1727277050843,14.19,152.28,152.23,9.75]
[1727277051241,17.54282138,152.28,152.23,9.75]
[1727277052549,17.54282138,152.28,152.23,13.0346]
[1727277053539,17.54282138,152.28,152.23,9.75]
[1727277053746,3.35282138,152.28,152.23,9.75]
[1727277053946,14.19,152.26,152.23,9.75]
[1727277054142,14.19,152.24,152.18,1.2709]
[1727277054349,3.2852,152.21,152.18,1.2709]
[1727277054549,14.19,152.22,152.16,2.6578]
[1727277055052,3.2851,152.21,152.18,3.2856]
[1727277055651,6.541637,152.21,152.18,3.2856]
[1727277055947,3.256537,152.21,152.19,4.2454]
[1727277057752,3.256537,152.21,152.2,3.2853]
[1727277057948,3.2847,152.23,152.2,3.2853]
[1727277058450,3.266726,152.23,152.19,0.96]
[1727277058653,14.19,152.24,152.19,0.96]
[1727277058850,3.285,152.22,152.19,4.2454]
[1727277059047,6.58623714,152.22,152.19,4.2454]
[1727277060449,6.58623714,152.22,152.19,0.96]
[1727277060450,14.19,152.2,152.19,0.96]
[1727277061057,3.2853,152.2,152.19,0.96]
[1727277061256,14.19,152.22,152.19,0.96]
[1727277061452,14.19,152.2,152.19,0.96]
[1727277061652,14.19,152.2,152.14,3.2865]
[1727277061653,17.52924932,152.2,152.14,3.2865]
[1727277061953,17.52924932,152.2,152.11,2.7791]
[1727277061954,14.19,152.15,152.11,2.7791]
[1727277062153,14.19,152.15,152.11,1.3887]
[1727277062359,14.19,152.15,152.09,1.3355]
[1727277062753,3.287,152.12,152.09,4.623]
[1727277062952,17.50887201,152.15,152.09,3.2875]
[1727277063758,17.50887201,152.15,152.08,3.2878]
[1727277064060,17.50887201,152.15,152.07,1.3887]
[1727277064257,17.50887201,152.15,152.11,3.2871]
[1727277064559,17.50887201,152.15,152.07,1.3887]
[1727277064858,3.2866,152.14,152.11,3.2872]
[1727277065053,3.31887201,152.15,152.08,14.19]
[1727277065260,14.19,152.18,152.08,14.19]
[1727277065460,3.2863,152.15,152.12,3.2869]
[1727277065759,6.61579687,152.15,152.12,3.2869]
[1727277065959,14.19,152.2,152.1,14.19]
[1727277066257,17.4257777,152.2,152.1,14.19]
[1727277066455,17.4257777,152.2,152.12,14.19]
[1727277066655,3.2357777,152.2,152.13,2.6788]
[1727277066851,80.2464,152.24,152.13,2.6788]
[1727277067050,14.19,152.21,152.13,2.6788]
[1727277067357,3.2858,152.18,152.15,3.2863]
[1727277067559,3.2858,152.18,152.13,2.6788]
[1727277068061,3.2859,152.17,152.13,2.6788]
[1727277068454,3.2859,152.17,152.14,3.2865]
[1727277068852,3.24531404,152.21,152.13,2.6788]
[1727277069057,14.19,152.22,152.16,3.286]
[1727277069863,3.2854,152.2,152.16,3.286]
[1727277070157,15.5764,152.24,152.14,15.4899]
[1727277070366,3.2852,152.21,152.14,15.4899]
[1727277070557,6.53710327,152.21,152.14,15.4899]
[1727277070753,14.19,152.24,152.19,3.2854]
[1727277070959,3.2851,152.21,152.14,15.4899]
[1727277071258,14.19,152.24,152.19,3.2855]
[1727277071650,14.19,152.24,152.18,3.2855]
[1727277072055,14.19,152.22,152.14,1.2999]
[1727277072351,14.19,152.2,152.14,1.2999]
[1727277072555,3.2856,152.19,152.14,1.2999]
[1727277072963,17.46624745,152.2,152.14,1.2999]
[1727277073159,3.2857,152.18,152.14,1.2999]
[1727277073364,3.2857,152.18,152.15,3.2862]
[1727277073564,3.2857,152.18,152.14,1.2999]
[1727277074366,14.19,152.22,152.15,14.19]
[1727277074564,14.19,152.22,152.17,3.2859]
[1727277074964,3.2854,152.2,152.17,3.2859]
[1727277075167,3.2854,152.2,152.18,3.2857]
[1727277075462,3.2854,152.2,152.15,14.19]
[1727277075867,3.2854,152.2,152.17,3.2858]
[1727277076067,3.2854,152.2,152.14,1.2999]
[1727277076262,3.33640128,152.21,152.14,1.2999]
[1727277076467,14.19,152.22,152.16,3.2861]
[1727277076967,14.19,152.2,152.15,3.2862]
[1727277077165,3.24370521,152.19,152.14,1.2999]
[1727277077366,6.52930521,152.19,152.14,1.2999]
[1727277077566,3.24370521,152.19,152.15,3.2862]
[1727277077762,3.2857,152.18,152.15,3.2862]
[1727277077960,3.2857,152.18,152.16,3.2861]
[1727277078160,3.24370521,152.19,152.16,3.2861]
[1727277078364,14.19,152.22,152.14,1.2999]
[1727277079066,3.2856,152.19,152.16,3.286]
[1727277079472,14.19,152.22,152.14,1.2999]
[1727277079673,3.22694102,152.21,152.19,3.2854]
[1727277079868,14.19,152.24,152.15,14.19]
[1727277080273,3.2849,152.22,152.19,3.2854]
[1727277080573,3.30462966,152.21,152.19,3.2854]
[1727277080875,6.58972966,152.21,152.19,3.2854]
[1727277081071,3.2851,152.21,152.19,3.2854]
[1727277081573,3.2851,152.21,152.15,14.19]
[1727277081574,14.19,152.26,152.17,14.19]
[1727277082170,14.19,152.28,152.19,14.19]
[1727277082468,14.19,152.26,152.2,4.0169]
[1727277082663,3.2849,152.22,152.2,1.379]
[1727277083271,14.19,152.24,152.15,14.19]
[1727277083272,3.285,152.21,152.18,3.2857]
[1727277083466,14.19,152.24,152.16,1.379]
[1727277084073,3.2852,152.21,152.18,3.2856]
[1727277085475,14.19,152.23,152.16,1.379]
[1727277086371,3.2852,152.21,152.18,3.2857]
[1727277086566,14.19,152.24,152.16,1.379]
[1727277086772,14.19,152.26,152.17,14.19]
[1727277087373,3.2843,152.25,152.23,3.2846]
[1727277087575,14.19,152.28,152.19,14.19]
[1727277087773,14.19,152.28,152.2,1.3962]
[1727277087973,3.2841,152.26,152.23,3.2845]
[1727277088474,3.2841,152.26,152.22,3.2846]
[1727277088676,14.19,152.28,152.2,2.719]
[1727277089477,3.2841,152.26,152.23,3.2845]
[1727277089680,14.19,152.28,152.2,2.719]
[1727277089881,14.19,152.26,152.2,2.719]
[1727277090182,14.19,152.26,152.21,3.2849]
[1727277090380,14.19,152.26,152.16,18.2472]
[1727277090571,3.2847,152.23,152.2,3.2852]
[1727277090974,14.19,152.26,152.16,18.2472]
[1727277091178,3.2843,152.25,152.22,3.2848]
[1727277091582,14.19,152.26,152.16,18.2472]
[1727277091784,3.2843,152.25,152.16,18.2472]
[1727277091981,14.19,152.28,152.19,14.19]
[1727277092386,3.284,152.26,152.23,3.2845]
[1727277095092,3.284,152.26,152.24,3.2844]
[1727277095393,72.09316983,152.29,152.19,14.19]
[1727277095586,72.09316983,152.29,152.24,3.2844]
[1727277095890,3.2839,152.27,152.24,3.2844]
[1727277097194,3.284,152.26,152.19,14.19]
[1727277097392,3.284,152.26,152.16,4.0572]
[1727277097393,14.19,152.28,152.17,14.19]
[1727277097693,14.19,152.28,152.22,3.2848]
[1727277097890,3.2843,152.25,152.17,14.19]
[1727277098192,14.19,152.28,152.16,4.0572]
[1727277098387,14.19,152.28,152.18,14.19]
[1727277098990,3.284,152.26,152.18,14.19]
[1727277099190,3.284,152.26,152.24,3.2844]
[1727277100089,3.284,152.26,152.23,3.2845]
[1727277100287,3.2843,152.25,152.23,3.2845]
[1727277100587,3.2843,152.25,152.16,18.2472]
[1727277100791,14.19,152.26,152.18,14.19]
[1727277100993,3.2841,152.26,152.18,14.19]
[1727277101394,3.2843,152.25,152.22,3.2847]
[1727277101794,72.09316983,152.29,152.18,14.19]
[1727277101997,3.2839,152.27,152.25,3.2842]
[1727277103092,3.2836,152.28,152.25,3.2842]
[1727277103494,86.28316983,152.29,152.25,3.2842]
[1727277103800,86.28316983,152.29,152.24,3.2843]
[1727277103999,86.28316983,152.29,152.2,14.19]
[1727277104694,3.2836,152.28,152.25,3.284]
[1727277105197,3.2836,152.28,152.25,3.2841]
[1727277105393,3.2836,152.28,152.2,14.19]
[1727277106000,3.2836,152.28,152.25,3.284]
[1727277106399,14.19,152.31,152.22,14.19]
[1727277106600,14.19,152.34,152.25,14.19]
[1727277106803,17.49124993,152.34,152.25,14.19]
[1727277108695,17.49124993,152.34,152.3,3.283]
[1727277108894,96.20798494,152.37,152.25,14.19]
[1727277109096,3.2825,152.33,152.3,3.2829]
[1727277109300,99.56245964,152.37,152.25,14.19]
[1727277109301,14.19,152.34,152.25,14.19]
[1727277109696,14.19,152.34,152.28,3.2834]
[1727277110191,14.19,152.34,152.25,14.19]
[1727277110396,3.2828,152.32,152.25,14.19]
[1727277110998,3.2829,152.31,152.25,14.19]
[1727277111503,14.19,152.34,152.29,3.2833]
[1727277111892,14.19,152.34,152.25,14.19]
[1727277112098,14.19,152.34,152.28,3.2834]
[1727277113102,3.283,152.31,152.28,3.2834]
[1727277113293,14.19,152.32,152.23,18.1822]
[1727277113500,14.19,152.3,152.23,3.9922]
[1727277113702,3.21990945,152.29,152.23,3.9922]
[1727277113902,3.2836,152.28,152.23,3.9922]
[1727277114105,14.19,152.3,152.23,3.9922]
[1727277114300,14.19,152.3,152.23,2.6324]
[1727277114897,14.19,152.3,152.24,3.2842]
[1727277115106,14.19,152.28,152.24,3.2842]
[1727277115403,17.51173256,152.28,152.23,4.6029]
[1727277115607,14.19,152.26,152.19,2.7256]
[1727277116101,3.2843,152.25,152.22,3.2847]
[1727277118008,3.36159507,152.26,152.19,2.7256]
[1727277118309,14.19,152.28,152.19,2.7256]
[1727277118711,3.2839,152.27,152.19,2.7256]
[1727277119014,17.5502808,152.28,152.19,2.7256]
[1727277119206,3.284,152.26,152.19,2.7256]
[1727277119607,1.3242,152.32,152.27,3.2838]
[1727277119807,3.2832,152.3,152.27,3.2838]
[1727277120215,3.2832,152.3,152.28,3.2835]
[1727277120410,15.5142,152.32,152.24,14.19]
[1727277120620,14.19,152.32,152.24,14.19]
[1727277120910,3.2828,152.32,152.24,14.19]
[1727277121114,3.2828,152.32,152.25,1.3919]
[1727277121304,3.2828,152.32,152.29,3.2832]
[1727277123517,3.2825,152.33,152.26,14.19]
[1727277123920,15.4585,152.36,152.26,14.19]
[1727277124220,15.4585,152.36,152.31,3.2829]
[1727277124413,15.4585,152.36,152.26,14.19]
[1727277124612,3.2825,152.33,152.26,14.19]
[1727277125017,99.56245964,152.37,152.28,14.19]
[1727277125221,99.56245964,152.37,152.32,3.2825]
[1727277125222,3.2822,152.35,152.32,3.2825]
[1727277125412,14.19,152.35,152.26,14.19]
[1727277125917,3.2824,152.34,152.31,3.2828]
[1727277126919,3.2824,152.34,152.26,14.19]
[1727277127414,17.4721,152.35,152.32,3.2827]
[1727277127616,3.2821,152.35,152.32,3.2827]
[1727277128021,3.2823,152.34,152.31,3.2828]
[1727277128223,113.75245964,152.37,152.31,3.2828]
[1727277128419,14.19,152.35,152.27,14.19]
[1727277128618,14.19,152.35,152.25,18.1475]
[1727277128824,14.19,152.33,152.25,18.1475]
[1727277129018,3.2829,152.31,152.28,3.2833]
[1727277129520,3.2829,152.31,152.25,18.1475]
[1727277129723,3.2828,152.32,152.29,3.2833]
[1727277130127,14.19,152.33,152.25,18.1475]
[1727277130414,14.19,152.29,152.21,14.19]
[1727277130731,14.19,152.29,152.2,1.3766]
[1727277131023,14.19,152.27,152.2,1.3766]
[1727277131220,3.2842,152.26,152.2,1.3766]
[1727277131425,6.62728256,152.26,152.2,1.3766]
[1727277131823,6.62728256,152.26,152.23,3.2845]
[1727277133223,3.34308256,152.26,152.2,1.3766]
[1727277133424,14.19,152.25,152.2,1.3766]
[1727277133626,3.23772435,152.24,152.2,1.3766]
[1727277134020,6.52222435,152.24,152.21,3.2849]
[1727277134426,6.52222435,152.24,152.2,4.6618]
[1727277134625,17.4748,152.23,152.15,78.1262884]
[1727277134825,14.19,152.23,152.15,79.4590884]
[1727277135122,14.19,152.23,152.19,3.2853]
[1727277135427,6.5656,152.32,152.17,14.19]
[1727277135628,14.19,152.28,152.19,14.19]
[1727277135816,17.4817055,152.28,152.19,14.19]
[1727277136225,3.284,152.26,152.23,3.2845]
[1727277137833,3.2838,152.27,152.24,3.2843]
[1727277138032,3.2838,152.27,152.19,14.19]
[1727277138228,3.2838,152.27,152.2,1.2607]
[1727277138428,3.2838,152.27,152.25,3.2842]
[1727277138737,3.2838,152.27,152.21,1.2717]
[1727277139329,3.2838,152.27,152.24,3.2843]
[1727277140026,3.284,152.26,152.21,1.2717]
[1727277140228,3.284,152.26,152.23,3.2845]
[1727277141630,3.2843,152.25,152.22,3.2847]
[1727277141932,17.4817055,152.28,152.21,1.2717]
[1727277142230,3.2843,152.25,152.22,3.2847]
[1727277142435,3.2843,152.25,152.15,63.9362884]
[1727277142436,3.25600962,152.28,152.17,14.19]
[1727277142735,3.285,152.22,152.16,1.387]
[1727277142935,6.61067094,152.22,152.16,1.387]
[1727277143135,3.285,152.22,152.16,1.387]
[1727277143329,3.2852,152.21,152.16,1.387]
[1727277143526,6.5668,152.29,152.16,1.387]
[1727277143734,14.19,152.22,152.16,1.387]
[1727277144035,3.2852,152.21,152.18,3.2856]
[1727277144228,6.65063047,152.21,152.18,3.2856]
[1727277145729,3.286,152.17,152.14,3.2864]
[1727277147034,14.19,152.17,152.1,3.9507]
[1727277147235,3.34067306,152.18,152.1,3.9507]
[1727277147435,3.2865,152.15,152.12,3.2868]
[1727277148140,6.62761381,152.15,152.12,3.2868]
[1727277148433,14.19,152.17,152.11,3.2871]
[1727277148634,14.19,152.17,152.1,3.9507]
[1727277148635,14.19,152.15,152.05,16.8546]
[1727277148832,3.2869,152.13,152.05,18.1918]
[1727277149039,3.33125123,152.15,152.11,3.2871]
[1727277149337,14.19,152.17,152.11,3.2871]
[1727277149739,17.4331455,152.17,152.11,3.2871]
[1727277150038,3.2865,152.15,152.11,3.2871]
[1727277150242,14.19,152.15,152.1,3.2874]
[1727277150434,14.19,152.15,152.05,4.0018]
[1727277150631,3.2872,152.12,152.05,4.0018]
[1727277150930,3.2872,152.12,152.08,3.2877]
[1727277151530,14.19,152.15,152.08,3.2877]
[1727277151735,14.19,152.15,152.05,4.0018]
[1727277151935,14.19,152.13,152.07,3.288]
[1727277152838,14.19,152.13,152.05,1.3372]
[1727277152839,3.2873,152.11,152.08,3.2878]
[1727277153541,3.2875,152.1,152.07,3.288]
[1727277154140,3.2877,152.09,152.06,3.2882]
[1727277154940,3.2875,152.1,152.07,3.2879]
[1727277155243,14.19,152.14,152.05,1.3372]
[1727277155444,14.19,152.14,152.07,3.288]
[1727277156238,1.334,152.16,152.06,3.2882]
[1727277156239,14.19,152.12,152.06,3.2882]
[1727277156444,14.19,152.13,152.06,3.2882]
[1727277156744,3.2878,152.09,152.06,3.2882]
[1727277156945,6.65895979,152.09,152.06,3.2882]
[1727277157144,3.2878,152.09,152.07,3.2881]
[1727277157641,3.2875,152.1,152.07,3.288]
[1727277157840,3.2875,152.1,152.05,1.3372]
[1727277158041,14.19,152.14,152.05,1.3372]
[1727277158241,14.19,152.14,152.08,3.2877]
[1727277158438,1.334,152.16,152.05,15.5272]
[1727277158746,3.2876,152.1,152.07,3.2879]
[1727277158943,14.19,152.13,152.05,1.3372]
[1727277159246,14.19,152.13,152.06,3.2882]
[1727277160744,14.19,152.13,152.05,1.3372]
[1727277161139,1.334,152.16,152.05,15.5272]
[1727277161344,3.2431455,152.17,152.09,14.19]
[1727277161548,14.19,152.2,152.11,14.19]
[1727277161745,3.2862,152.16,152.13,3.2867]
[1727277162248,3.2864,152.15,152.13,3.2867]
[1727277162449,3.2864,152.15,152.12,3.2869]
[1727277162840,3.2867,152.14,152.09,14.19]
[1727277163443,3.2867,152.14,152.11,3.2871]
[1727277163744,3.22018288,152.2,152.07,14.19]
[1727277163946,14.19,152.15,152.09,3.2875]
[1727277164145,14.19,152.13,152.06,2.6276]
[1727277164347,3.2872,152.11,152.06,2.6276]
[1727277164547,3.32555448,152.1,152.06,2.6276]
[1727277164852,6.571,152.2,152.07,14.19]
[1727277165049,14.19,152.17,152.07,14.19]
[1727277165350,17.49384893,152.17,152.07,14.19]
[1727277165748,3.2866,152.14,152.07,14.19]
[1727277165952,17.49384893,152.17,152.07,14.19]
[1727277166146,3.2864,152.15,152.12,3.2869]
[1727277166353,17.49384893,152.17,152.07,14.19]
[1727277166748,3.2865,152.15,152.12,3.2869]
[1727277167356,3.2866,152.14,152.12,3.2869]
[1727277167554,3.32051351,152.15,152.11,3.2871]
[1727277167753,14.19,152.17,152.08,14.19]
[1727277167952,14.19,152.15,152.06,16.8176]
[1727277168352,3.34813513,152.15,152.08,14.19]
[1727277168655,3.2867,152.14,152.11,3.2871]
[1727277168856,6.60228108,152.14,152.08,14.19]
[1727277169056,3.2867,152.14,152.11,3.2871]
[1727277169461,6.60076576,152.15,152.08,14.19]
[1727277169665,3.2865,152.15,152.09,14.19]
[1727277169963,3.2865,152.15,152.12,3.287]
[1727277170157,3.2866,152.14,152.12,3.287]
[1727277170353,3.2866,152.14,152.11,3.2871]
[1727277170963,3.2868,152.13,152.1,3.2873]
[1727277171160,14.19,152.14,152.1,3.2873]
[1727277171665,6.5510696,152.13,152.1,3.2873]